lending/lending_fUSD_20241214
["ID","MTS","AMOUNT","RATE_DAILY","PERIOD"]
[345358078,1734181847892,-500.0,0.00022399,3]
[345358079,1734181847902,-500.0,0.00022399,3]
[345358080,1734181847915,-500.0,0.00022399,3]
[345358081,1734181847925,-500.76252636,0.00022399,3]
[345358082,1734181847935,-500.0,0.00022399,3]
[345358083,1734181847944,-500.0,0.00022399,3]
[345358084,1734181847954,-500.0,0.00022399,3]
[345358085,1734181847963,-500.0,0.00022399,3]
[345358086,1734181847972,-616.0666097,0.00022399,3]
[345358087,1734181847981,-500.0,0.00022399,3]
[345358088,1734181847990,-973.29,0.00022399,3]
[345358089,1734181847999,-500.0,0.00022399,3]
[345358090,1734181848008,-500.0,0.00022399,3]
[345358091,1734181848017,-664.07,0.00022399,3]
[345358092,1734181848026,-500.0,0.00022399,3]
[345358093,1734181848035,-500.0,0.00022399,3]
[345358094,1734181848044,-500.0,0.00022399,3]
[345358095,1734181848054,-503.6440326,0.00022399,3]
[345358096,1734181848064,-500.0,0.00022399,3]
[345358097,1734181848074,-500.0,0.00022399,3]
[345358098,1734181848083,-500.0,0.00022399,3]
[345358099,1734181848092,-600.39770291,0.00022399,3]
[345358100,1734181848101,-500.0,0.00022399,3]
[345358101,1734181848111,-500.0,0.00022399,3]
[345358102,1734181848120,-500.0,0.00022399,3]
[345358103,1734181848129,-500.0,0.00022399,3]
[345358104,1734181848138,-500.0,0.00022399,3]
[345358105,1734181848147,-500.0,0.00022399,3]
[345358106,1734181848158,-500.0,0.00022399,3]
[345358107,1734181848169,-238.3866962,0.00022399,3]
[345358108,1734181848178,-500.0,0.00022399,3]
[345358109,1734181848188,-838.65,0.00022399,3]
[345358110,1734181848197,-500.0,0.00022399,3]
[345358111,1734181848207,-500.0,0.00022399,3]
[345358112,1734181848216,-500.0,0.00022399,3]
[345358113,1734181848226,-500.0,0.00022399,3]
[345358114,1734181848236,-500.0,0.00022399,3]
[345358115,1734181848245,-500.0,0.00022399,3]
[345358116,1734181848254,-500.0,0.00022399,3]
[345358117,1734181848263,-500.0,0.00022399,3]
[345358118,1734181848273,-500.0,0.00022399,3]
[345358119,1734181848281,-500.0,0.00022399,3]
[345358120,1734181848291,-532.67,0.00022399,3]
[345358121,1734181848300,-500.0,0.00022399,3]
[345358122,1734181848309,-500.0,0.00022399,3]
[345358123,1734181848318,-500.0,0.00022399,3]
[345358124,1734181848327,-500.0,0.00022399,3]
[345358125,1734181848336,-500.0,0.00022399,3]
[345358126,1734181848345,-500.0,0.00022399,3]
[345358127,1734181848355,-500.0,0.00022399,3]
[345358128,1734181848364,-500.0,0.00022399,3]
[345358129,1734181848373,-500.0,0.00022399,3]
[345358130,1734181848382,-500.0,0.00022399,3]
[345358131,1734181848393,-500.0,0.00022399,3]
[345358132,1734181848403,-500.0,0.00022399,3]
[345358133,1734181848418,-649.31,0.00022399,3]
[345358134,1734181848428,-500.0,0.00022399,3]
[345358135,1734181848438,-500.0,0.00022399,3]
[345358136,1734181848447,-500.0,0.00022399,2]
[345358137,1734181848456,-316.77176504,0.00022399,3]
[345358138,1734181848466,-596.39107516,0.00022399,3]
[345358139,1734181848478,-514.69,0.00022399,3]
[345358140,1734181848487,-388.76,0.00022399,3]
[345358141,1734181848496,-523.6,0.00022399,3]
[345358142,1734181848505,-500.0,0.00022399,3]
[345358143,1734181848515,-520.00755075,0.00022399,3]
[345358144,1734181848524,-500.0,0.00022399,3]
[345358145,1734181848533,-500.0,0.00022399,3]
[345358146,1734181848542,-500.0,0.00022399,3]
[345358147,1734181848551,-7500.0,0.00022399,2]
[345358148,1734181848560,-500.0,0.00022399,3]
[345358149,1734181848569,-500.0,0.00022399,3]
[345358150,1734181848579,-500.0,0.00022399,3]
[345358151,1734181848588,-500.0,0.00022399,3]
[345358152,1734181848597,-500.0,0.00022399,3]
[345358153,1734181848606,-500.0,0.00022399,3]
[345358154,1734181848616,-537.94,0.00022399,3]
[345358155,1734181848625,-1000.0,0.000224,2]
[345358156,1734181848634,-2094.51,0.000224,31]
[345358157,1734181848643,-2094.51,0.000224,31]
[345358158,1734181848652,-2094.51,0.000224,31]
[345358159,1734181848665,-2094.51,0.000224,31]
[345358160,1734181848676,-2094.51,0.000224,31]
[345358161,1734181848685,-2094.51,0.000224,31]
[345358162,1734181848695,-2094.51,0.000224,31]
[345358163,1734181848704,-2094.51,0.000224,31]
[345358164,1734181848714,-2094.51,0.000224,31]
[345358165,1734181848723,-2094.51,0.000224,31]
[345358166,1734181848733,-2094.51,0.000224,31]
[345358167,1734181848743,-2094.51,0.000224,31]
[345358168,1734181848752,-2094.51,0.000224,31]
[345358169,1734181848762,-2094.51,0.000224,31]
[345358170,1734181848772,-2094.51,0.000224,31]
[345358171,1734181848781,-2094.51,0.000224,31]
[345358172,1734181848790,-1855.0,0.00022491,2]
[345358173,1734181848799,-2000.0,0.0002253,120]
[345358174,1734181848809,-502.652294,0.0002253,120]
[345358175,1734181848818,-202.180823,0.0002253,120]
[345358176,1734181848827,-160.89808607,0.00022589,2]
[345358177,1734181848837,-451.1,0.00022601,2]
[345358178,1734181848846,-1239.91,0.00022636,2]
[345358179,1734181848855,-150.0,0.00022636,2]
[345358180,1734181848865,-330.0,0.000227,10]
[345358181,1734181848875,-1855.0,0.00022711,2]
[345358182,1734181848885,-741.91075704,0.00022759,2]
[345358183,1734181848895,-250.0,0.00022844,2]
[345358184,1734181848904,-901.9,0.00022844,2]
[345358185,1734181848920,-151.28,0.00022844,2]
[345358186,1734181848930,-200.0,0.00022844,2]
[345358187,1734181848940,-1886.9,0.00022903,2]
[345358188,1734181848950,-1000.0,0.00022921,2]
[345358189,1734181848962,-587.0,0.0002296,2]
[345358190,1734181848971,-1000.0,0.00022961,2]
[345358191,1734181848980,-314.40301345,0.00022973,2]
[345358192,1734181848990,-300.25341394,0.00022973,2]
[345358193,1734181848999,-500.0,0.00023,30]
[345358194,1734181849009,-500.0,0.00023,30]
[345358195,1734181849018,-500.0,0.00023,30]
[345358196,1734181849028,-500.0,0.00023,30]
[345358197,1734181849037,-500.0,0.00023,30]
[345358198,1734181849046,-500.0,0.00023,30]
[345358199,1734181849055,-500.0,0.00023,30]
[345358200,1734181849065,-500.0,0.00023,30]
[345358201,1734181849074,-500.0,0.00023,30]
[345358202,1734181849083,-500.0,0.00023,30]
[345358203,1734181849093,-500.0,0.00023,30]
[345358204,1734181849102,-207.91296597,0.00023,30]
[345358205,1734181849214,-500.0,0.00023,30]
[345358206,1734181849224,-273.88024212,0.00023,30]
[345358207,1734181849233,-500.0,0.00023,30]
[345358208,1734181849243,-500.0,0.00023,30]
[345358209,1734181849253,-500.0,0.00023,30]
[345358210,1734181849263,-500.0,0.00023,30]
[345358211,1734181849272,-810.0,0.00023,30]
[345358212,1734181849282,-500.0,0.00023,30]
[345358213,1734181849291,-500.0,0.00023,30]
[345358214,1734181849301,-162.87303827,0.00023,30]
[345358215,1734181849310,-500.0,0.00023,30]
[345358216,1734181849319,-500.0,0.00023,30]
[345358217,1734181849329,-500.0,0.00023,30]
[345358218,1734181849338,-500.0,0.00023,30]
[345358219,1734181849348,-500.0,0.00023,30]
[345358220,1734181849358,-985.54968241,0.00023,30]
[345358221,1734181849367,-500.0,0.00023,30]
[345358222,1734181849377,-160.01117531,0.00023,30]
[345358223,1734181849386,-500.7,0.00023,30]
[345358224,1734181849398,-297.26394791,0.00023,30]
[345358225,1734181849409,-500.0,0.00023,30]
[345358226,1734181849419,-159.10844445,0.00023,30]
[345358227,1734181849429,-500.0,0.00023,30]
[345358228,1734181849438,-500.0,0.00023,30]
[345358229,1734181849448,-500.0,0.00023,30]
[345358230,1734181849457,-969.25624918,0.00023,30]
[345358231,1734181849467,-500.0,0.00023,30]
[345358232,1734181849476,-500.0,0.00023,30]
[345358233,1734181849486,-500.0,0.00023,30]
[345358234,1734181849495,-500.0,0.00023,30]
[345358235,1734181849505,-500.0,0.00023,30]
[345358236,1734181849514,-500.0,0.00023,30]
[345358237,1734181849523,-687.51826944,0.00023,30]
[345358238,1734181849532,-500.0,0.00023,30]
[345358239,1734181849542,-500.0,0.00023,30]
[345358240,1734181849551,-500.0,0.00023,30]
[345358241,1734181849560,-546.91310322,0.00023,30]
[345358242,1734181849569,-475.24133958,0.00023,30]
[345358243,1734181849579,-159.33598802,0.00023,30]
[345358244,1734181849588,-500.0,0.00023,30]
[345358245,1734181849598,-187.25450627,0.00023,30]
[345358246,1734181849607,-500.0,0.00023,30]
[345358247,1734181849617,-156.7762905,0.00023,30]
[345358248,1734181849627,-500.0,0.00023,30]
[345358249,1734181849636,-500.0,0.00023,30]
[345358250,1734181849645,-500.0,0.00023,30]
[345358251,1734181849655,-500.0,0.00023,30]
[345358252,1734181849670,-500.0,0.00023,30]
[345358253,1734181849679,-500.0,0.00023,30]
[345358254,1734181849689,-500.0,0.00023,30]
[345358255,1734181849699,-500.0,0.00023,30]
[345358256,1734181849708,-500.0,0.00023,30]
[345358257,1734181849719,-500.0,0.00023,30]
[345358258,1734181849729,-736.17466217,0.00023,30]
[345358259,1734181849739,-954.06167408,0.00023,30]
[345358260,1734181849749,-938.42994283,0.00023,30]
[345358261,1734181849758,-500.0,0.00023,30]
[345358262,1734181849768,-500.0,0.00023,30]
[345358263,1734181849777,-500.0,0.00023,30]
[345358264,1734181849788,-500.0,0.00023,30]
[345358265,1734181849797,-500.0,0.00023,30]
[345358266,1734181849807,-707.37451852,0.00023,30]
[345358267,1734181849817,-500.0,0.00023,30]
[345358268,1734181849826,-500.0,0.00023,30]
[345358269,1734181849835,-500.0,0.00023,30]
[345358270,1734181849844,-500.0,0.00023,30]
[345358271,1734181849853,-500.0,0.00023,30]
[345358272,1734181849863,-500.0,0.00023,30]
[345358273,1734181849872,-473.21871603,0.00023,30]
[345358274,1734181849881,-500.0,0.00023,30]
[345358275,1734181849890,-500.0,0.00023,30]
[345358276,1734181849899,-500.0,0.00023,30]
[345358277,1734181849911,-500.0,0.00023,30]
[345358278,1734181849920,-500.0,0.00023,30]
[345358279,1734181849931,-500.0,0.00023,30]
[345358280,1734181849940,-500.0,0.00023,30]
[345358281,1734181849950,-500.0,0.00023,30]
[345358282,1734181849959,-500.0,0.00023,30]
[345358283,1734181849968,-500.0,0.00023,30]
[345358284,1734181849979,-500.7,0.00023,30]
[345358285,1734181849989,-475.24133958,0.00023,30]
[345358286,1734181849998,-473.21871603,0.00023,30]
[345358287,1734181850008,-475.24133958,0.00023,30]
[345358288,1734181850016,-473.21871603,0.00023,30]
[345358289,1734181850026,-475.24133958,0.00023,30]
[345358290,1734181850035,-473.21871603,0.00023,30]
[345358291,1734181850044,-182.2,0.00023063,30]
[345358292,1734181850053,-189.54,0.0002308,2]
[345358293,1734181850062,-500.0,0.00023174,2]
[345358294,1734181850071,-500.0,0.00023174,2]
[345358295,1734181850081,-330.0,0.000232,11]
[345358296,1734181850090,-316.57140952,0.00023223,2]
[345358297,1734181850099,-1500.0,0.00023287,3]
[345358298,1734181850108,-300.0,0.000233,2]
[345358299,1734181850117,-150.0,0.00023317,2]
[345358300,1734181850125,-30152.98918045,0.00023317,2]
[345358301,1734181850134,-739.0,0.00023441,2]
[345358302,1734181850143,-317.29,0.0002349,2]
[345358303,1734181850152,-1488.272,0.00023685,4]
[345358304,1734181850165,-153.061,0.00023685,4]
[345358305,1734181850174,-330.0,0.000237,11]
[345358306,1734181850184,-1254.0,0.00023715,2]
[345358307,1734181850193,-3765.0,0.00023715,2]
[345358308,1734181850201,-817.0,0.00023715,2]
[345358309,1734181850210,-1389.204,0.00023715,2]
[345358310,1734181850220,-930.0,0.00023715,2]
[345358311,1734181850230,-318.21,0.00023715,2]
[345358312,1734181850238,-150.0,0.00024004,2]
[345358313,1734181850248,-150.0,0.00024006,2]
[345358314,1734181850257,-160.89808607,0.0002403,2]
[345358315,1734181850266,-150.0,0.00024086,2]
[345358316,1734181850275,-316.57140952,0.00024147,2]
[345358317,1734181850284,-330.0,0.000242,12]
[345358318,1734181850293,-150.0,0.0002424,2]
[345358319,1734181850303,-2000.0,0.00024262,2]
[345358320,1734181850312,-1000.0,0.00024657,3]
[345358321,1734181850321,-984.78,0.00024657,3]
[345358322,1734181850330,-8676.85,0.00024658,4]
[345358323,1734181850339,-1000.0,0.00024658,2]
[345358324,1734181850348,-400.0,0.000247,2]
[345358325,1734181850357,-330.0,0.000247,13]
[345358326,1734181850367,-500.0,0.00024788,3]
[345358327,1734181850376,-500.0,0.00024788,3]
[345358328,1734181850385,-500.0,0.00024788,3]
[345358329,1734181850396,-500.0,0.00024788,3]
[345358330,1734181850409,-500.0,0.00024788,3]
[345358331,1734181850419,-500.0,0.00024788,3]
[345358332,1734181850429,-500.0,0.00024788,3]
[345358333,1734181850437,-973.29,0.00024788,3]
[345358334,1734181850447,-664.07,0.00024788,3]
[345358335,1734181850456,-500.0,0.00024788,3]
[345358336,1734181850466,-500.0,0.00024788,3]
[345358337,1734181850476,-500.0,0.00024788,3]
[345358338,1734181850486,-500.0,0.00024788,3]
[345358339,1734181850494,-500.0,0.00024788,3]
[345358340,1734181850504,-838.65,0.00024788,3]
[345358341,1734181850513,-500.0,0.00024788,3]
[345358342,1734181850522,-500.0,0.00024788,3]
[345358343,1734181850531,-500.0,0.00024788,3]
[345358344,1734181850540,-500.0,0.00024788,3]
[345358345,1734181850549,-500.0,0.00024788,3]
[345358346,1734181850559,-500.0,0.00024788,3]
[345358347,1734181850568,-500.0,0.00024788,3]
[345358348,1734181850577,-500.0,0.00024788,3]
[345358349,1734181850587,-500.0,0.00024788,3]
[345358350,1734181850596,-500.0,0.00024788,3]
[345358351,1734181850605,-649.31,0.00024788,3]
[345358352,1734181850614,-500.0,0.00024788,3]
[345358353,1734181850623,-523.6,0.00024788,3]
[345358354,1734181850632,-500.0,0.00024788,3]
[345358355,1734181850642,-7500.0,0.00024788,2]
[345358356,1734181850651,-500.0,0.00024788,3]
[345358357,1734181850665,-500.0,0.00024788,3]
[345358358,1734181850674,-150.0,0.00024826,2]
[345358359,1734181850683,-150.0,0.00024826,2]
[345358360,1734181850693,-1263.0,0.00024826,2]
[345358361,1734181850702,-567.0,0.00024826,2]
[345358362,1734181850711,-2000.0,0.00024899,2]
[345358363,1734181850720,-152.248534,0.00024899,3]
[345358364,1734181850729,-295.765675,0.00024899,3]
[345358365,1734181850738,-500.0,0.00024899,3]
[345358366,1734181850748,-500.0,0.00024899,3]
[345358367,1734181850757,-500.0,0.00024899,3]
[345358368,1734181850766,-350.76,0.00024899,3]
[345358369,1734181850775,-500.0,0.00024899,3]
[345358370,1734181850784,-500.0,0.00024899,3]
[345358371,1734181850793,-500.0,0.00024899,3]
[345358372,1734181850802,-500.0,0.00024899,3]
[345358373,1734181850812,-500.0,0.00024899,3]
[345358374,1734181850821,-500.0,0.00024899,3]
[345358375,1734181850830,-500.0,0.00024899,3]
[345358376,1734181850839,-500.0,0.00024899,3]
[345358377,1734181850848,-500.0,0.00024899,3]
[345358378,1734181850857,-709.56,0.00024899,3]
[345358379,1734181850866,-500.0,0.00024899,3]
[345358380,1734181850875,-500.0,0.00024899,3]
[345358381,1734181850884,-500.0,0.00024899,3]
[345358382,1734181850894,-500.0,0.00024899,3]
[345358383,1734181850905,-500.0,0.00024899,3]
[345358384,1734181850919,-500.0,0.00024899,3]
[345358385,1734181850928,-500.0,0.00024899,3]
[345358386,1734181850938,-500.0,0.00024899,3]
[345358387,1734181850947,-500.0,0.00024899,3]
[345358388,1734181850956,-500.0,0.00024899,3]
[345358389,1734181850965,-500.0,0.00024899,3]
[345358390,1734181850974,-500.0,0.00024899,3]
[345358391,1734181850983,-500.0,0.00024899,3]
[345358392,1734181850992,-500.0,0.00024899,3]
[345358393,1734181851002,-500.0,0.00024899,3]
[345358394,1734181851011,-500.0,0.00024899,3]
[345358395,1734181851020,-500.0,0.00024899,3]
[345358396,1734181851030,-500.0,0.00024899,3]
[345358397,1734181851039,-500.0,0.00024899,3]
[345358398,1734181851049,-500.0,0.00024899,3]
[345358399,1734181851058,-500.0,0.00024899,3]
[345358400,1734181851067,-500.0,0.00024899,3]
[345358401,1734181851077,-500.0,0.00024899,3]
[345358402,1734181851087,-500.0,0.00024899,3]
[345358403,1734181851095,-500.0,0.00024899,3]
[345358404,1734181851104,-500.0,0.00024899,3]
[345358405,1734181851114,-500.0,0.00024899,3]
[345358406,1734181851123,-500.0,0.00024899,3]
[345358407,1734181851132,-1239.91,0.000249,2]
[345358408,1734181851141,-300.0,0.000249,9]
[345358409,1734181851151,-52758.60957869,0.000249,2]
[345358410,1734181851163,-594.45554597,0.000249,2]
[345358411,1734181851172,-2999.99,0.00024963,2]
[345358412,1734181851182,-150.0,0.00025,2]
[345358413,1734181851191,-4915.27559563,0.00025,30]
[345358414,1734181851202,-12000.0,0.00025,10]
[345358415,1734181851211,-178.0,0.00025,2]
[345358416,1734181851220,-1783.29,0.00025,5]
[345358417,1734181851231,-489.0,0.00025018,2]
[345358418,1734181851240,-316.57140952,0.00025071,2]
[345358419,1734181851250,-451.1,0.00025112,120]
[345358420,1734181851259,-330.0,0.000252,13]
[345358421,1734181851268,-2094.51,0.000252,31]
[345358422,1734181851278,-2094.51,0.000252,31]
[345358423,1734181851287,-2094.51,0.000252,31]
[345358424,1734181851296,-2094.51,0.000252,31]
[345358425,1734181851306,-2094.51,0.000252,31]
[345358426,1734181851315,-2094.51,0.000252,31]
[345358427,1734181851324,-2094.51,0.000252,31]
[345358428,1734181851333,-2094.51,0.000252,31]
[345358429,1734181851343,-2094.51,0.000252,31]
[345358430,1734181851352,-2094.51,0.000252,31]
[345358431,1734181851362,-2094.51,0.000252,31]
[345358432,1734181851371,-2094.51,0.000252,31]
[345358433,1734181851380,-2094.51,0.000252,31]
[345358434,1734181851483,-2094.51,0.000252,31]
[345358435,1734181851493,-2094.51,0.000252,31]
[345358436,1734181851502,-2094.51,0.000252,31]
[345358437,1734181851511,-2094.51,0.000252,31]
[345358438,1734181851521,-2094.51,0.000252,31]
[345358439,1734181851530,-2094.51,0.000252,31]
[345358440,1734181851539,-2094.51,0.000252,31]
[345358441,1734181851548,-2094.51,0.000252,31]
[345358442,1734181851556,-2094.51,0.000252,31]
[345358443,1734181851566,-2094.51,0.000252,31]
[345358444,1734181851575,-2094.51,0.000252,31]
[345358445,1734181851584,-500.44414763,0.00025267,2]
[345358446,1734181851593,-500.0,0.00025267,2]
[345358447,1734181851603,-280.0,0.000253,10]
[345358448,1734181851612,-500.0,0.00025366,7]
[345358449,1734181851622,-500.0,0.00025366,7]
[345358450,1734181851632,-160.89808607,0.0002547,2]
[345358451,1734181851641,-200.0,0.000255,2]
[345358452,1734181851651,-1000.0,0.00025513,2]
[345358453,1734181851662,-639.0,0.000257,14]
[345358454,1734181851673,-1108.85,0.00025708,120]
[345358455,1734181851682,-150.0,0.00025718,4]
[345358456,1734181851692,-704.33337822,0.00025815,2]
[345358457,1734181851701,-150.0,0.00025835,120]
[345358458,1734181851710,-316.57140952,0.00025996,2]
[345358459,1734181851720,-350.0,0.00025998,2]
[345358460,1734181851729,-500.0,0.00025998,3]
[345358461,1734181851738,-600.0,0.00025998,3]
[345358462,1734181851747,-1000.0,0.00025998,3]
[345358463,1734181851757,-200.0,0.00026,2]
[345358464,1734181851766,-984.78,0.00026033,3]
[345358465,1734181851775,-418.26898046,0.00026064,2]
[345358466,1734181851785,-251.9398541,0.00026469,4]
[345358467,1734181851794,-500.0,0.00026549,3]
[345358468,1734181851803,-500.0,0.00026549,3]
[345358469,1734181851812,-500.0,0.00026549,3]
[345358470,1734181851822,-500.0,0.00026549,3]
[345358471,1734181851837,-500.0,0.00026549,3]
[345358472,1734181851850,-326.64706728,0.00026549,3]
[345358473,1734181851859,-973.29,0.00026549,3]
[345358474,1734181851869,-664.07,0.00026549,3]
[345358475,1734181851879,-500.0,0.00026549,3]
[345358476,1734181851889,-500.0,0.00026549,3]
[345358477,1734181851898,-500.0,0.00026549,3]
[345358478,1734181851911,-500.0,0.00026549,3]
[345358479,1734181851921,-500.0,0.00026549,3]
[345358480,1734181851931,-838.65,0.00026549,3]
[345358481,1734181851940,-500.0,0.00026549,3]
[345358482,1734181851950,-500.0,0.00026549,3]
[345358483,1734181851959,-500.0,0.00026549,3]
[345358484,1734181851969,-500.0,0.00026549,3]
[345358485,1734181851978,-500.0,0.00026549,3]
[345358486,1734181851988,-500.0,0.00026549,3]
[345358487,1734181851998,-634.2,0.00026549,3]
[345358488,1734181852007,-500.0,0.00026549,3]
[345358489,1734181852017,-500.0,0.00026549,3]
[345358490,1734181852026,-500.0,0.00026549,3]
[345358491,1734181852036,-649.31,0.00026549,3]
[345358492,1734181852045,-500.0,0.00026549,3]
[345358493,1734181852055,-523.6,0.00026549,3]
[345358494,1734181852064,-500.0,0.00026549,3]
[345358495,1734181852074,-1415.39617569,0.00026549,2]
[345358496,1734181852084,-500.0,0.00026549,3]
[345358497,1734181852093,-500.0,0.00026549,3]
[345358498,1734181852103,-418.26898046,0.00026556,2]
[345358499,1734181852112,-500.0,0.00026573,2]
[345358500,1734181852121,-26511.0,0.00026591,10]
[345358501,1734181852130,-150.99,0.00026591,2]
[345358502,1734181852140,-299.99,0.00026591,12]
[345358503,1734181852149,-500.0,0.00026594,3]
[345358504,1734181852161,-450.08,0.00026594,3]
[345358505,1734181852170,-500.0,0.00026594,3]
[345358506,1734181852180,-500.0,0.00026594,3]
[345358507,1734181852194,-500.0,0.00026594,3]
[345358508,1734181852203,-500.0,0.00026594,3]
[345358509,1734181852212,-500.0,0.00026594,3]
[345358510,1734181852221,-500.0,0.00026594,3]
[345358511,1734181852230,-500.0,0.00026594,3]
[345358512,1734181852239,-500.0,0.00026594,3]
[345358513,1734181852249,-350.94,0.00026594,3]
[345358514,1734181852258,-500.0,0.00026594,3]
[345358515,1734181852267,-973.29,0.00026594,3]
[345358516,1734181852276,-973.29,0.00026594,3]
[345358517,1734181852285,-973.29,0.00026594,3]
[345358518,1734181852294,-664.07,0.00026594,3]
[345358519,1734181852303,-664.07,0.00026594,3]
[345358520,1734181852312,-664.07,0.00026594,3]
[345358521,1734181852321,-500.0,0.00026594,3]
[345358522,1734181852330,-500.0,0.00026594,3]
[345358523,1734181852339,-500.0,0.00026594,3]
[345358524,1734181852349,-500.0,0.00026594,3]
[345358525,1734181852358,-500.0,0.00026594,3]
[345358526,1734181852367,-500.0,0.00026594,3]
[345358527,1734181852376,-500.0,0.00026594,3]
[345358528,1734181852385,-500.0,0.00026594,3]
[345358529,1734181852399,-500.0,0.00026594,3]
[345358530,1734181852411,-500.0,0.00026594,3]
[345358531,1734181852420,-500.0,0.00026594,3]
[345358532,1734181852429,-500.0,0.00026594,3]
[345358533,1734181852441,-838.65,0.00026594,3]
[345358534,1734181852450,-838.65,0.00026594,3]
[345358535,1734181852459,-838.65,0.00026594,3]
[345358536,1734181852468,-384.1890796,0.00026594,3]
[345358537,1734181852477,-216.08,0.00026594,3]
[345358538,1734181852486,-500.0,0.00026594,3]
[345358539,1734181852495,-500.0,0.00026594,3]
[345358540,1734181852505,-500.0,0.00026594,3]
[345358541,1734181852513,-500.0,0.00026594,3]
[345358542,1734181852523,-500.0,0.00026594,3]
[345358543,1734181852532,-500.0,0.00026594,3]
[345358544,1734181852541,-500.0,0.00026594,3]
[345358545,1734181852550,-182.28628897,0.00026594,3]
[345358546,1734181852560,-500.0,0.00026594,3]
[345358547,1734181852569,-284.0,0.00026594,3]
[345358548,1734181852579,-500.0,0.00026594,3]
[345358549,1734181852588,-500.0,0.00026594,3]
[345358550,1734181852598,-500.0,0.00026594,3]
[345358551,1734181852608,-500.0,0.00026594,3]
[345358552,1734181852617,-305.64,0.00026594,3]
[345358553,1734181852626,-500.0,0.00026594,3]
[345358554,1734181852636,-500.0,0.00026594,3]
[345358555,1734181852646,-500.0,0.00026594,3]
[345358556,1734181852655,-649.31,0.00026594,3]
[345358557,1734181852668,-649.31,0.00026594,3]
[345358558,1734181852677,-649.31,0.00026594,3]
[345358559,1734181852687,-984.78,0.00026594,3]
[345358560,1734181852698,-984.78,0.00026594,3]
[345358561,1734181852707,-500.0,0.00026594,3]
[345358562,1734181852717,-984.78,0.00026594,3]
[345358563,1734181852726,-500.0,0.00026594,3]
[345358564,1734181852736,-500.0,0.00026594,3]
[345358565,1734181852745,-523.6,0.00026594,3]
[345358566,1734181852754,-523.6,0.00026594,3]
[345358567,1734181852764,-523.6,0.00026594,3]
[345358568,1734181852773,-500.0,0.00026594,3]
[345358569,1734181852782,-500.0,0.00026594,3]
[345358570,1734181852792,-500.0,0.00026594,3]
[345358571,1734181852801,-500.0,0.00026594,3]
[345358572,1734181852811,-500.0,0.00026594,3]
[345358573,1734181852820,-500.0,0.00026594,3]
[345358574,1734181852829,-500.0,0.00026594,3]
[345358575,1734181852838,-502.9,0.00026594,3]
[345358576,1734181852847,-787641.24703729,0.00026595,2]
[345358577,1734181852856,-418.26898047,0.00026599,2]